Cogmind - Beta 15 @@@ ROGUE MODE // 2025.07.30 @ 13:05:55 Player: Inverisimilidude Result: Destroyed by as-93829 with Assembled Heavy Rifle Performance ------------- Evolutions (0) 0 Regions Visited (0) 0 Robots Destroyed (5) 25 Value Destroyed (74) 74 Prototype IDs (0) 0 Alien Tech Used (0) 0 Bonus (0) 0 TOTAL SCORE: 99 Bonus ------- None Cogmind --------- Core Integrity 0/250 Matter 283/300 Energy 100/100 System Corruption 13% Temperature Cool (0) Movement Core (50) Location -11/Scrapyard Parts ------- > --- POWER (1) -------- (None) > --- PROPULSION (2) --- (None) > --- UTILITY (2) ------ (None) > --- WEAPON (2) ------- (None) > --- INVENTORY (5) ---- Ion Engine Light Treads Light Treads Compact Wheel Compact Wheel Peak State ------------ > --- POWER ------------ Ion Engine > --- PROPULSION ------- Aluminum Leg Aluminum Leg > --- UTILITY ---------- Small Storage Unit Improved Terrain Scanner > --- WEAPON ----------- Assault Rifle Light Assault Rifle > --- INVENTORY -------- Ion Engine Light Treads Light Treads Compact Wheel Compact Wheel Light Assault Rifle [Rating: 9] Favorites ----------- Power Ion Engine Engine Ion Engine Propulsion Aluminum Leg Leg Aluminum Leg Utility Small Storage Unit Device Improved Terrain Scanner Storage Small Storage Unit Weapon Assault Rifle Ballistic Gun Assault Rifle Build | -11 ------- Run | Yrd Slots Evolved . | . Power . | . Propulsion . | . Utility . | . Weapon . | . Parts Attached 8 | 8 Power 1 | 1 Engine 1 | 1 Core . | . Reactor . | . Propulsion 2 | 2 Treads . | . Leg 2 | 2 Wheel . | . Hover . | . Flight . | . Utility 3 | 3 Device 2 | 2 Storage 1 | 1 Processor . | . Hackware . | . Protection . | . Artifact . | . Weapon 2 | 2 Energy Gun . | . Energy Cannon . | . Ballistic Gun 2 | 2 Ballistic Cannon . | . Launcher . | . Special Weapon . | . Impact Weapon . | . Slashing Weapon . | . Piercing Weapon . | . Special Melee Weapon . | . Unidentified Prototypes . | . Parts Lost 4 | 4 Power . | . Propulsion 1 | 1 Utility 2 | 2 Weapon 1 | 1 Highest Loss Streak 3 | 3 To Critical Strikes . | . Average Backups 6 | 6 Power . | . Propulsion 4 | 4 Utility . | . Weapon . | . Tool/Special . | . Unused Backups 7 | 7 Power 1 | 1 Propulsion 5 | 5 Utility . | . Weapon 1 | 1 Tool/Special . | . Average Slot Usage (%) . | . Peak Build Rating 9 | 9 Average Rating 8 | 8 On Entrance . | . Naked Turns . | . Heaviest Build 14 | 14 Greatest Support 20 | 20 Greatest Overweight (x) . | . Average Overweight (x) . | . Largest Inventory Capacity 8 | 8 Average Capacity 7 | 7 Most Carried 7 | 7 Average Carried 6 | 6 Final Capacity 5 | 5 Final Carried 5 | 5 Class Distribution -------------------- None Dominant Class ---------------- None Resources | -11 ----------- Run | Yrd Matter Collected 318 | 318 Remotely . | . Salvage Created 120 | 120 Parts 7 | 7 Haulers Intercepted . | . Recyclers Shooed 1 | 1 Parts Field Recycled . | . Retrieved Matter . | . Parts Self-Destructed . | . Prevented . | . Kills | -11 ------- Run | Yrd Combat Hostiles Destroyed 1 | 1 Guns 1 | 1 Classes Destroyed 4 | 4 Worker 1 | 1 Tunneler 2 | 2 Recycler 1 | 1 Demolisher 1 | 1 Best Kill Streak 4 | 4 Combat Bots Only 1 | 1 Max Kills in Single Turn 1 | 1 Gunslinging . | . Exploded . | . Melee . | . Uniques/NPCs Destroyed . | . Combat | -11 -------- Run | Yrd Hostile Shots Fired 51 | 51 Missed 24 | 24 Hits 27 | 27 Melee 5 | 5 Projectile 22 | 22 AOE 9 | 9 Damage Taken 632 | 632 Core 262 | 262 Absorbed by Shields . | . Core Remaining (%) . | . Volleys Fired 16 | 16 Largest 2 | 2 Hottest 40 | 40 Shots Fired 32 | 32 Gun 32 | 32 Cannon . | . Launcher . | . Special . | . Kinetic 32 | 32 Thermal . | . Explosive . | . Electromagnetic . | . Robot Hit Streak 5 | 5 Robot Miss Streak 5 | 5 Penetration Max . | . Secondary Targets . | . Shots Hit Robots 16 | 16 Core Hits 9 | 9 Critical Kills . | . Critical Parts Destroyed . | . Critical Strikes . | . Melee Attacks . | . Impact . | . Slashing . | . Piercing . | . Sneak Attacks . | . Combat Hostiles . | . Follow-up Attacks . | . Damage Inflicted 176 | 176 Guns 176 | 176 Cannons . | . Explosions . | . Melee . | . Ramming . | . Kinetic 176 | 176 Thermal . | . Explosive . | . Electromagnetic . | . Impact . | . Slashing . | . Piercing . | . Highest Corruption 13 | 13 Average Corruption 6 | 6 Corruption Purged . | . Corruption Blocked . | . Effects 2 | 2 Matter Fused 1 | 1 Parts Rejected 1 | 1 Overload Shots . | . Overflow Damage . | . Projectiles . | . Explosions . | . Melee . | . Knockbacks . | . Impact . | . Kinetic . | . Secondary . | . Self-Inflicted Damage . | . Shots . | . Rammed . | . Targets Rammed . | . Kicked . | . Crushed . | . Highest Temperature . | . Average Temperature . | . Received Heat Transfer . | . Siege Activations . | . Martial Activations . | . Shielding Activations . | . Robots Disrupted . | . Combat Hostiles . | . Robots Corrupted . | . Combat Hostiles . | . Parts Fried . | . Impact Corruptions . | . Robots Melted . | . Combat Hostiles . | . Parts Melted . | . Heat Transferred . | . Parts Sabotaged . | . Parts Stolen . | . Parts Stripped . | . Power Chain Reactions . | . Alert | -11 ------- Run | Yrd Maximum Alert Level . | . Low Security (%) 100 | 100 Level 1 . | . Level 2 . | . Level 3 . | . Level 4 . | . Level 5 . | . High Security . | . Max Security . | . Peak Influence 30 | 30 Initial . | . Average 1 | 1 Influence Increases 50 | 50 Destroy 0b10 Robot/C 20 | 20 Destroy 0b10 Robot/NC 20 | 20 Destroy Leader 10 | 10 Influence Decreases 50 | 50 Time Decay 50 | 50 Squads Dispatched . | . Investigation . | . Extermination . | . Reinforcement . | . Assault . | . Garrison . | . Intercept . | . Searches Triggered . | . Construction Impeded . | . Haulers Reinforced . | . Active Scanning Responses . | . Cargo Convoy Interrupts . | . Stealth | -11 --------- Run | Yrd Distress Signals . | . Communications Jammed . | . Distress Signals . | . Times Spotted 15 | 15 Peak Tracking Total 13 | 13 Tactical Retreats . | . Traps | -11 ------- Run | Yrd Traps Triggered . | . Indirectly . | . Trap Hack Attempts . | . Triggered . | . Disarmed . | . Reprogrammed . | . Reused . | . Traps Extracted . | . Installed . | . Triggered . | . Machines | -11 ---------- Run | Yrd Machines Disabled . | . Max in Single Turn . | . Machines Repaired . | . Machines Dismantled . | . Machines Sabotaged . | . Overloaded Fab Kills . | . Hacking | -11 --------- Run | Yrd Machines Accessed . | . Terminals . | . Fabricators . | . Repair Stations . | . Recycling Units . | . Scanalyzers . | . Garrison Access . | . Total Hacks . | . Successful . | . Failed . | . Catastrophic . | . Database Lockouts . | . Manual . | . Terminals . | . Fabricators . | . Repair Stations . | . Recycling Units . | . Scanalyzers . | . Garrison Access . | . Terminal Hacks . | . Fabricator Hacks . | . Repair Station Hacks . | . Recycling Unit Hacks . | . Scanalyzer . | . Garrison Access Hacks . | . Unauthorized Hacks . | . Terminals . | . Fabricators . | . Repair Stations . | . Recycling Units . | . Scanalyzers . | . Garrison Access . | . Data Cores Recovered . | . Used . | . Hacking Detections . | . Full Trace Events . | . Feedback Events . | . Feedback Blocked . | . Robot Schematics Acquired . | . Robots Built . | . Authchips . | . Time . | . Total Robot Build Rating . | . Part Schematics Acquired . | . Parts Built . | . Authchips . | . Time . | . Total Part Build Rating . | . Parts Repaired . | . Time . | . Parts Recycled . | . Recycled Matter . | . Retrieved Matter . | . Retrieved Components . | . Parts Scanalyzed . | . Part Schematics Acquired . | . Parts Damaged . | . Bothacking | -11 ------------ Run | Yrd Used RIF Installer . | . Robots Hacked . | . Non-combat . | . Combat . | . Robot Hacks Applied . | . Relay Couplers Released . | . Fabnet Peak Effective % . | . Robots Rewired . | . Allies Hacked . | . Hacks Repelled . | . Allies | -11 -------- Run | Yrd Total Allies . | . Largest Group . | . Highest-Rated Group . | . Highest-Rated Ally . | . Total Orders . | . Ally Attacks . | . Total Damage . | . Kills . | . Allies Corrupted . | . Allies Melted . | . Intel | -11 ------- Run | Yrd Active Infowar (turns) 2245 | 2245 Terrain 1946 | 1946 Seismic 299 | 299 Robot Analysis Total . | . Derelict Logs Recovered . | . Drone Launches . | . Drone Recoveries . | . Exploration | -11 ------------- Run | Yrd Turns Passed 2510 | 2510 Spaces Moved 387 | 387 Core 27 | 27 Treads . | . Legs 360 | 360 Wheels . | . Hover . | . Flight . | . Fastest Speed 50 | 50 Average Speed 115 | 115 Slowest Speed 120 | 120 Overloaded Moves . | . Propulsion Burnouts . | . Robots Hopped . | . Potential Cave-ins . | . Cave-ins Triggered . | . Exploration Rate (%) 48 | 48 Regions Visited . Branch Regions . Pre-discovered Areas . | . Known Exits Taken . | . Unknown Exits Taken . | . Scrap Searched . | . Spaces Dug . | . Terrain Destroyed . | . Melee . | . Projectile . | . AOE . | . Terrain Rammed . | . Walls Destroyed . | . Machines Disabled . | . Actions | -11 --------- Run | Yrd Total 2418 | 2418 Wait 2000 | 2000 Move 387 | 387 Hop . | . Pick Up 7 | 7 Fast Attach 8 | 8 Attach . | . Detach . | . Swap . | . Drop . | . Fire 16 | 16 Melee . | . Ram . | . Kick . | . Crush . | . Escape Stasis . | . Rewire . | . Trap . | . Miscellaneous . | . Route ------- -11/Scrapyard (discovered 1 exit: [*Mat]) History --------- Turn | Location | Event 7 | -11/Scrapyard | Discovered new exit (range 15) 2033 | -11/Scrapyard | Assembled infested the area 2500 | -11/Scrapyard | System corruption reached 10% 2500 | -11/Scrapyard | Released all parts (3) 2502 | -11/Scrapyard | Core integrity fell below 50% 2506 | -11/Scrapyard | Core integrity fell below 20% 2511 | -11/Scrapyard | Destroyed by as-93829 with Assembled Heavy Rifle Last Messages --------------- 02044_ D-53 Grenadier destroyed. 02056_ K-01 Serf collects debris. 02060_ The unstable cave ceiling collapses. 02060_ K-01 Serf collects debris. 02170_ Acquired Seismic Detector. 02178_ Acquired Com. Wheel. 02182_ The unstable cave ceiling collapses. 02244_ T-07 Excavator is excavating. 02469_ Seismic Detector destroyed. 02469_ System corrupted by crushing effect (+4). 02471_ System corrupted: Ion Engine rejected. 02472_ Knocked back. 02499_ Aluminum Leg destroyed. 02499_ Assault Rifle destroyed. 02499_ System corrupted by crushing effect (+4). 02499_ System corrupted by crushing effect (+5). 02500_ Released Sml. Storage Unit. 02500_ Released Aluminum Leg. 02500_ Released Lgt. Assault Rifle. 02504_ System corrupted: Matter fused (-6). Map ----- +----------------------------------------------------+ | ??????????????# #### ###?#? | | ??????????????# # # #### ###### | | ??????????????# # # #### #?#?## | | ######????????# ?# #?########### #?#### | | # #################### #?#?#??# ### ####### | | #?#????# | | #?????## | | # #######?############ ###?#### ##### | | ## ########?????#???#### ##??#??# ## | | # # #????#?#???### #?#??### ## | | # # #???#?######## ######## ## | | #?????# ?# # # ## | | # # #??#### # # # ## | | # # #????## # # # ###### | | # #? #?##### # | | # #?#######?##?# # # # | | # #??????###???# # # # | | # #??????###?########## ######## | | ## #???############?# ##### | | ?# #???# ##### # | | ?# #???# ##??# | | ?# [##### a ##### a | | ?# =!= aaaa | | ?# [ !a a ## ###### ######### | | ?# ##### ##### < # ## ?? ##?? | | ?# #???# #?#?# @ # ## ???? | | ?# #???# ########### ## #??# | | ?# #???#### ####?#??## # ## #??# | | ?# #??????# # ?? # ## #??? | | ?# ??????# #? # #??## # ## #??? | | ?# #?????? ?? ## ?######## #########??? | | ?####????? # # ? ? ?######### #???#??#???? | | ????????? # # ?? ?##???#### #??????????? | | ???????? ?# #? ??? #?#?#### #?????????#? | | ???????? ?# #? ?#????#?##?# #??????????? | | ???????????# #??? ?# ??###############?????????? | | ???????????# #??? ??###?###?#????????????#????? | | ???????????? #????#??????#??????????????????????? | | ???????????? #??????????????????????????????????? | | ???????????? ???????????????????????????????????? | | ?????????????????????????????????????????????????? | | ?????????????????????????????????????????????????? | | ?????????????????????????????????????????????????? | | ?????????????????????????????????????????????????? | | ?????????????????????????????????????????????????? | | ?????????????????????????????????????????????????? | | ?????????????????????????????????????????????????? | | ?????????????????????????????????????????????????? | | ?????????????????????????????????????????????????? | | ?????????????????????????????????????????????????? | +----------------------------------------------------+ Best States ------------- Heat Dissipation 25 Energy Generation 10 Energy Capacity 250 Matter Stores 300 Matter Capacity 300 Sight Range 16 Terrain Scan Range 16 Terrain Scan Density 10 Evasion (%) 55 Item Schematics ----------------- None Robot Schematics ------------------ None Fabricated ------------ Nothing Repaired ---------- Nothing Alien Tech Used ----------------- None Achievements -------------- Curiosity Killed The Cat Challenges ------------ None Game ------ Seed HugeDataLauncher Manual? 0 Play Time 00:07:16 Cumulative 71.0 hours Start 2025.07.30 @ 13:01:59 End 2025.07.30 @ 13:05:55 Sessions 0 Manual Loads 0 Difficulty Rogue Special Mode None Game No. 92 Rogue 92 Adventurer 0 Explorer 0 Win Type - Total 0 Types 0/0/0/0/0/0/0/0/0/0 Lore% 48 Gallery% 37 Achievement% 37 Wizard Run 0 Options --------- Layout 1 ASCII 0 Keyboard 0 Movement Arrows Keybinds 0 Fullscreen 1 Font 24/Smallcaps Map View 50x35 Zoom Use 0% Tactical HUD 1 Map Filters NONE Filters NONE Steam 1 RUN: 723cc981-114a-42d9-80b4-30aeb65c7b02